bitfinex/quotes_ETHUSD_20250630
["timestamp","ask_amount","ask_price","bid_price","bid_amount"]
[1751282349510,0.2184333,2463.2,2463.1,13.24896131]
[1751282349705,0.2184333,2463.2,2463.1,12.69896131]
[1751282350240,0.2184333,2463.2,2463.1,5.94896131]
[1751282350396,0.2184333,2463.2,2463.1,12.69696131]
[1751282350596,0.2184333,2463.2,2463.1,13.24696131]
[1751282351255,0.9811333,2463.2,2463.1,4.26232448]
[1751282351397,0.9811333,2463.2,2463.1,10.80692448]
[1751282351603,0.9811333,2463.2,2463.1,11.35692448]
[1751282352437,0.9811333,2463.2,2463.1,0.55]
[1751282352947,0.8156,2463.1,2462.9,6.744]
[1751282353244,1.018,2463.1,2462.9,10.80425407]
[1751282353445,1.018,2463.1,2463.0,0.55]
[1751282353734,1.018,2463.1,2462.7,4.06046267]
[1751282353735,10.8156,2463.0,2462.7,4.06050984]
[1751282353935,10.8156,2463.0,2462.1,2.5843]
[1751282353936,0.8156,2462.9,2462.1,1.793]
[1751282354114,10.0,2462.8,2462.5,0.2024]
[1751282354428,0.7997,2462.7,2462.5,0.2024]
[1751282354734,1.0021,2462.7,2462.5,4.06089391]
[1751282354901,1.0021,2462.7,2462.4,4.06099963]
[1751282355102,1.0021,2462.7,2462.5,4.06091072]
[1751282355698,1.0021,2462.7,2462.6,0.55]
[1751282356100,1.0021,2462.7,2462.6,4.6107488]
[1751282357580,0.7704,2463.0,2462.6,11.3517488]
[1751282357774,0.7704,2463.0,2462.9,4.06025417]
[1751282358275,0.7704,2463.0,2462.9,11.36125417]
[1751282358582,0.2184333,2463.2,2463.1,4.05992448]
[1751282358759,0.2184333,2463.2,2463.1,10.81092448]
[1751282362153,0.2184333,2463.2,2463.1,4.05992448]
[1751282362671,0.2184333,2463.2,2463.1,0.55]
[1751282362880,1.1842333,2463.2,2463.1,0.55]
[1751282363389,1.94520027,2463.2,2463.0,0.55]
[1751282363552,0.7677,2463.1,2463.0,0.55]
[1751282363948,0.7677,2463.1,2463.0,4.61008932]
[1751282365853,0.7654,2463.0,2462.5,4.06080939]
[1751282366054,0.7654,2463.0,2462.6,10.79766793]
[1751282366055,0.2024,2462.9,2462.6,10.79766793]
[1751282366279,0.7633,2462.8,2462.6,10.79766793]
[1751282366679,0.7633,2462.8,2462.7,4.61058391]
[1751282370193,0.6633,2462.8,2462.7,4.61058391]
[1751282375021,0.6633,2462.8,2462.7,0.55]
[1751282375169,2.15588022,2462.8,2462.7,0.55]
[1751282376521,0.6633,2462.8,2462.7,4.61058391]
[1751282377008,0.6633,2462.8,2462.7,0.55]
[1751282377575,0.6633,2462.8,2462.7,4.61058391]
[1751282381391,0.6633,2462.8,2462.7,0.55]
[1751282381710,0.6633,2462.8,2462.7,4.61058391]
[1751282387885,0.6633,2462.8,2462.6,0.55]
[1751282388088,1.72963,2462.8,2462.6,4.61072559]
[1751282388713,1.72963,2462.8,2462.7,4.06058391]
[1751282388930,1.72963,2462.8,2462.0,0.7924]
[1751282389094,0.2024,2462.6,2462.5,4.6109137]
[1751282389893,0.2024,2462.6,2462.4,4.06097883]
[1751282390093,1.72963,2462.8,2462.5,4.06090212]
[1751282390293,0.2024,2462.5,2462.4,4.61095253]
[1751282392292,0.2024,2462.5,2462.4,0.55]
[1751282392810,0.9889,2462.5,2462.4,0.55]
[1751282393840,0.9889,2462.5,2462.4,4.61107862]
[1751282394227,0.9889,2462.5,2462.4,0.55]
[1751282396851,0.9889,2462.5,2462.4,4.61107862]
[1751282397141,10.8165,2463.0,2462.4,2.17452198]
[1751282397312,0.8165,2463.0,2462.9,4.06025417]
[1751282397518,10.2024,2463.0,2462.9,0.55]
[1751282397739,10.2024,2463.0,2462.9,4.61025137]
[1751282398945,0.2184333,2463.2,2463.0,4.61008932]
[1751282399237,0.2184333,2463.2,2463.1,6.31005855]
[1751282400920,0.2024,2463.1,2463.0,0.55]
[1751282401132,0.2024,2463.1,2463.0,4.60994786]
[1751282403342,0.2024,2463.1,2462.9,4.06016971]
[1751282405360,10.2024,2463.1,2462.8,4.0603309]
[1751282405660,10.2024,2463.1,2462.9,4.61023145]
[1751282405812,0.8174,2463.0,2462.8,0.55]
[1751282406147,0.2024,2462.9,2462.8,0.55]
[1751282406831,0.2024,2462.9,2462.8,4.61041903]
[1751282407238,0.2024,2462.9,2462.7,4.6105005]
[1751282407436,0.2024,2462.9,2462.8,4.61041903]
[1751282407827,0.2024,2462.9,2462.7,4.06048866]
[1751282408957,0.2024,2462.9,2462.8,4.06041903]
[1751282410527,0.2024,2462.9,2462.7,4.61048343]
[1751282412265,0.2024,2462.9,2462.8,4.06041903]
[1751282414064,0.2024,2462.9,2462.7,4.61049292]
[1751282414264,0.2024,2462.9,2462.8,4.06041903]
[1751282414932,0.2024,2462.9,2462.7,4.0604997]
[1751282415464,0.2024,2462.9,2462.8,5.36781903]
[1751282415638,10.0,2463.1,2463.0,0.55]
[1751282416354,10.0,2463.1,2462.8,4.06034286]
[1751282416554,0.2024,2463.0,2462.9,0.55]
[1751282417164,0.2024,2463.0,2462.5,0.2024]
[1751282417165,0.9554,2463.0,2462.5,0.2024]
[1751282417464,0.2024,2462.8,2462.4,4.06098914]
[1751282417671,4.06044012,2462.8,2462.4,0.55]
[1751282417827,0.2024,2462.6,2462.4,0.55]
[1751282418030,10.2024,2462.6,2462.4,0.55]
[1751282418456,0.2024,2462.6,2462.4,0.55]
[1751282420163,1.022,2462.6,2462.4,0.55]
[1751282420472,0.2024,2462.6,2462.4,4.61107208]
[1751282420771,0.2024,2462.6,2462.3,4.61116359]
[1751282423535,0.2024,2462.6,2462.5,0.55]
[1751282423975,0.2024,2462.6,2462.3,4.61113982]
[1751282424136,0.2024,2462.6,2462.5,0.55]
[1751282425572,0.2024,2462.6,2462.5,4.6109137]
[1751282425949,0.2024,2462.6,2462.5,0.55]
[1751282426249,0.2024,2462.6,2462.4,4.61098489]
[1751282426450,0.2024,2462.6,2462.5,4.6109137]
[1751282426972,0.2024,2462.6,2462.5,0.55]
[1751282427269,0.2024,2462.6,2462.5,4.6109137]
[1751282428953,0.2024,2462.6,2462.5,0.55]
[1751282430471,0.2024,2462.6,2462.5,4.6109137]
[1751282430839,0.2024,2462.6,2462.5,0.55]
[1751282431175,0.2024,2462.6,2462.5,4.6109137]
[1751282438458,1.22264,2462.6,2462.3,0.55]
[1751282438658,0.2024,2462.5,2462.3,4.61115505]
[1751282438896,0.2024,2462.5,2462.3,4.6110926]
[1751282439183,0.2024,2462.5,2462.4,4.61107862]
[1751282445882,0.2024,2462.5,2462.4,4.06107862]
[1751282449988,0.2024,2462.5,2462.4,4.08107862]
[1751282451465,10.01,2462.8,2462.4,0.57]
[1751282451675,10.2124,2462.8,2462.6,4.06064629]
[1751282451879,10.2124,2462.8,2462.6,4.61064629]
[1751282452880,10.2124,2462.8,2462.6,0.55]
[1751282453080,13.33964032,2462.8,2462.6,0.55]
[1751282454690,13.33964032,2462.8,2462.5,4.61086443]
[1751282455395,17.40007816,2462.8,2462.5,0.55]
[1751282456195,13.33964032,2462.8,2462.5,0.55]
[1751282456488,13.33964032,2462.8,2462.4,0.02]
[1751282456489,17.40007716,2462.8,2462.4,0.02]
[1751282456696,0.2024,2462.6,2462.4,0.57]
[1751282457278,0.2024,2462.6,2462.4,4.63106749]
[1751282458195,0.2024,2462.6,2462.4,0.57]
[1751282460688,7.23390113,2462.6,2462.4,0.02]
[1751282460998,0.2024,2462.5,2462.4,0.02]
[1751282461564,0.2024,2462.5,2462.4,4.08107862]
[1751282461769,0.2024,2462.5,2462.4,0.02]
[1751282461972,0.2024,2462.5,2462.4,4.08107862]
[1751282463006,10.01,2462.8,2462.5,4.61082393]
[1751282463173,13.1166033,2462.8,2462.6,4.06072816]
[1751282463671,10.2124,2462.8,2462.7,4.61058391]
[1751282463875,0.01,2462.8,2462.7,5.57518391]
[1751282465498,0.01,2462.8,2462.7,5.37278391]
[1751282467406,0.01,2462.8,2462.7,4.61058391]
[1751282467607,0.01,2462.8,2462.7,0.55]
[1751282468001,0.01,2462.8,2462.6,0.55]
[1751282468307,0.9714,2462.8,2462.6,4.61073621]
[1751282468975,0.9714,2462.8,2462.5,4.61081431]
[1751282469574,1.4745557,2462.8,2462.5,4.61081431]
[1751282469908,1.4745557,2462.8,2462.4,0.02]
[1751282470101,1.4745557,2462.8,2462.4,0.57]
[1751282470102,0.2024,2462.6,2462.4,0.57]
[1751282471309,0.2024,2462.6,2462.4,4.63107026]
[1751282472314,0.2024,2462.6,2462.4,0.02]
[1751282472613,0.2024,2462.6,2462.4,4.08106247]
[1751282474518,0.2024,2462.6,2462.4,0.02]
[1751282475514,0.2024,2462.6,2462.4,4.08107761]
[1751282475690,0.2024,2462.6,2462.4,0.02]
[1751282476816,4.8563137,2462.5,2462.4,0.02]
[1751282476996,17.63738193,2462.5,2462.4,0.02]
[1751282477322,19.35638193,2462.5,2462.4,0.02]
[1751282480922,27.18638193,2462.5,2462.4,0.02]
[1751282482619,25.46738193,2462.5,2462.4,0.02]
[1751282482935,33.81238193,2462.5,2462.4,0.02]
[1751282487320,29.75146823,2462.5,2462.4,0.02]
[1751282489907,33.81238193,2462.5,2462.4,0.02]
[1751282490714,29.75146823,2462.5,2462.4,0.02]
[1751282491903,21.40646823,2462.5,2462.4,0.02]
[1751282492229,24.455,2462.5,2462.4,4.08107862]
[1751282492520,17.83,2462.5,2462.4,4.63107862]
[1751282492827,14.6574,2462.5,2462.4,4.63107862]
[1751282495407,8.0324,2462.5,2462.4,4.63107862]
[1751282498531,7.83,2462.5,2462.4,5.42357862]
[1751282498731,0.2124,2462.8,2462.7,4.61058391]
[1751282498952,0.01,2462.8,2462.7,5.40308391]
[1751282499238,0.01,2462.8,2462.7,5.60548391]
[1751282502133,0.01,2462.8,2462.7,12.22948391]
[1751282502431,0.01,2462.8,2462.7,14.13990635]
[1751282506306,0.01,2462.8,2462.7,12.22948391]
[1751282507143,0.01,2462.8,2462.7,5.60548391]
[1751282507342,0.01,2462.8,2462.7,4.61058391]
[1751282510430,0.01,2462.8,2462.7,5.60928391]
[1751282513361,0.01,2462.8,2462.7,4.81298391]
[1751282514063,0.01,2462.8,2462.7,11.23258391]
[1751282514439,0.01,2462.8,2462.7,4.61058391]
[1751282514642,0.01,2462.8,2462.7,11.23258391]
[1751282515860,0.01,2462.8,2462.7,4.61058391]
[1751282516160,0.01,2462.8,2462.7,11.23258391]
[1751282523050,0.01,2462.8,2462.7,13.65073684]
[1751282523372,0.01,2462.8,2462.7,13.85313684]
[1751282528160,0.01,2462.8,2462.7,10.68258391]
[1751282528564,0.01,2462.8,2462.7,11.23258391]
[1751282534878,0.01,2462.8,2462.7,12.04658391]
[1751282536095,0.01,2462.8,2462.7,22.04658391]
[1751282536261,0.01,2462.8,2462.7,50.47067391]
[1751282536454,0.01,2462.8,2462.7,45.42458391]
[1751282536650,0.01,2462.8,2462.7,32.64278991]
[1751282536853,0.01,2462.8,2462.7,29.03694691]
[1751282537448,0.2184333,2463.2,2463.1,15.42102448]
[1751282537700,0.2184333,2463.2,2463.1,41.9128791]
[1751282537995,0.2184333,2463.2,2463.1,30.0853931]
[1751282539176,0.2184333,2463.2,2463.1,35.2834931]
[1751282539794,0.2184333,2463.2,2463.1,33.7695931]
[1751282540000,0.2184333,2463.2,2463.1,30.0853931]
[1751282540295,0.2184333,2463.2,2463.1,23.75502448]
[1751282541887,0.2184333,2463.2,2463.1,23.95742448]
[1751282542354,0.2184333,2463.2,2463.1,13.95742448]
[1751282542978,0.2184333,2463.2,2463.1,13.75502448]
[1751282543883,0.2284333,2463.2,2463.1,13.75502448]
[1751282547780,0.2284333,2463.2,2463.1,23.75502448]
[1751282549497,0.2284333,2463.2,2463.1,45.42102448]
[1751282549667,0.2284333,2463.2,2463.1,43.90813948]
[1751282550064,0.2284333,2463.2,2463.1,37.38413548]
[1751282550393,0.2284333,2463.2,2463.1,18.10700648]
[1751282550705,0.2284333,2463.2,2463.1,15.42102448]
[1751282552899,0.2284333,2463.2,2463.1,15.62342448]
[1751282554412,0.2284333,2463.2,2463.1,5.07342448]
[1751282554807,0.2284333,2463.2,2463.1,5.62342448]
[1751282558592,0.2284333,2463.2,2463.1,4.81232448]
[1751282564583,0.2284333,2463.2,2463.1,5.59602448]
[1751282564878,0.2284333,2463.2,2463.1,7.19466956]
[1751282567112,0.2284333,2463.2,2463.1,6.99226956]
[1751282567419,0.2284333,2463.2,2463.1,16.99226956]
[1751282567586,0.01,2463.8,2463.7,4.60893574]
[1751282577136,0.01,2463.8,2463.7,4.81133574]
[1751282586451,0.01,2463.8,2463.7,5.63793574]
[1751282589141,0.01,2463.8,2463.7,15.63793574]
[1751282595222,0.01,2463.8,2463.7,21.48954374]
[1751282596027,0.01,2463.8,2463.7,24.60135036]
[1751282596337,0.01,2463.8,2463.7,15.63793574]
[1751282599130,0.01,2463.8,2463.7,21.96830436]
[1751282599663,0.01,2463.8,2463.7,47.55881036]
[1751282599862,0.01,2463.8,2463.7,34.93460436]
[1751282600470,0.01,2463.8,2463.7,35.45025213]
[1751282600780,0.01,2463.8,2463.7,38.40020105]
[1751282601591,0.01,2463.8,2463.7,42.67420105]
[1751282601777,0.01,2464.2,2464.1,9.10920685]
[1751282602072,0.01,2464.2,2464.1,20.64017685]
[1751282602248,0.01,2464.2,2464.1,20.27137185]
[1751282602750,0.01,2464.2,2464.1,18.87861185]
[1751282603157,0.01,2464.2,2464.1,20.63977685]
[1751282603685,0.01,2464.2,2464.1,18.14857685]
[1751282606264,0.01,2464.2,2464.1,45.63757685]
[1751282606671,0.2024,2465.3,2464.2,1.3793]
[1751282606878,0.7685,2466.7,2466.6,4.60416362]
[1751282607675,4.82080247,2467.3,2466.2,0.55]
[1751282607833,4.82080247,2467.3,2465.4,10.0]
[1751282607834,0.8224,2467.1,2465.8,0.754]
[1751282608039,0.8224,2467.1,2466.6,4.05405937]
[1751282608239,2.3099582,2467.0,2466.6,0.55]
[1751282608741,4.87602715,2467.0,2466.5,4.6042352]
[1751282608938,4.05369799,2466.9,2466.5,0.55]
[1751282609138,0.8224,2466.8,2466.5,0.55]
[1751282609380,0.8224,2466.8,2465.7,0.55]
[1751282609671,14.87627669,2466.7,2466.2,0.55]
[1751282609861,0.8222,2466.5,2466.2,0.55]
[1751282611370,0.8222,2466.5,2466.0,4.055104]
[1751282611570,4.87653975,2466.5,2465.9,4.60517439]
[1751282611776,0.8222,2466.5,2465.9,0.55]
[1751282611967,0.7956,2466.9,2466.7,4.05390785]
[1751282612279,4.05260184,2467.6,2466.8,0.55]
[1751282612571,0.48666018,2467.5,2467.4,4.60284915]
[1751282612763,0.814,2467.7,2467.5,4.60259333]
[1751282612963,0.814,2467.7,2467.5,0.55]
[1751282613143,0.814,2467.7,2467.6,4.05252066]
[1751282613345,0.814,2467.7,2467.6,4.60252066]
[1751282613541,0.814,2467.7,2467.6,0.55]
[1751282613745,0.814,2467.7,2467.6,4.60252066]
[1751282614958,0.814,2467.7,2467.6,0.55]
[1751282615153,0.814,2467.7,2467.6,4.60252066]
[1751282615354,0.824,2467.7,2467.6,0.55]
[1751282616581,0.824,2467.7,2466.7,0.8054]
[1751282616582,4.87635644,2467.7,2466.7,0.8054]
[1751282616754,4.87635644,2467.7,2467.5,0.55]
[1751282616755,0.9248828,2467.6,2467.5,0.55]
[1751282616951,4.97740346,2467.6,2467.5,0.55]
[1751282617152,0.9248828,2467.6,2466.8,4.05383492]
[1751282617356,5.07884213,2467.7,2467.3,0.2024]
[1751282617557,0.824,2467.7,2467.4,0.55]
[1751282617892,0.824,2467.7,2467.3,0.55]
[1751282617893,4.86061946,2467.6,2467.3,0.55]
[1751282618102,4.05268882,2467.5,2467.3,0.55]
[1751282618582,4.05283233,2467.5,2467.3,0.55]
[1751282618757,5.72108627,2467.4,2467.3,0.55]
[1751282619167,5.72108627,2467.4,2467.2,0.2024]
[1751282619366,5.72108627,2467.4,2464.3,2.06069699]
[1751282619367,1.66823712,2467.4,2467.0,0.2024]
[1751282619582,4.05317769,2467.2,2466.8,0.2024]
[1751282619979,4.05324697,2467.2,2466.8,0.2024]
[1751282620179,4.05324697,2467.2,2466.9,0.55]
[1751282620375,4.05335922,2467.1,2466.8,0.2024]
[1751282620698,4.84042952,2467.2,2466.9,0.55]
[1751282620866,4.05350628,2467.0,2466.9,0.55]
[1751282621067,4.05350628,2467.0,2466.1,0.8307]
[1751282621068,4.05367059,2466.9,2466.1,0.8307]
[1751282621272,14.05408439,2466.7,2466.6,0.2024]
[1751282621474,14.05408439,2466.7,2466.2,0.2024]
[1751282621475,0.9585,2466.7,2466.2,0.2024]
[1751282621769,4.05431908,2466.6,2466.2,0.2024]
[1751282622008,5.28795613,2466.6,2466.2,0.2024]
[1751282622399,4.05432878,2466.5,2466.2,0.2024]
[1751282622611,1.23363705,2466.6,2466.2,0.2024]
[1751282622612,5.28789111,2466.6,2466.3,0.55]
[1751282622815,4.05433666,2466.5,2466.3,0.55]
[1751282623177,5.28784367,2466.6,2466.3,0.55]
[1751282623378,1.23363705,2466.6,2466.3,0.55]
[1751282623574,0.9585,2466.7,2466.3,4.60454019]
[1751282623876,5.0125222,2466.7,2466.3,4.60456819]
[1751282624072,0.9585,2466.7,2466.3,4.60456819]
[1751282624469,5.01251508,2466.7,2466.3,0.55]
[1751282624877,0.9585,2466.7,2466.3,0.55]
[1751282625085,0.9585,2466.7,2466.2,0.2024]
[1751282625390,0.9585,2466.7,2466.4,4.60447787]
[1751282625604,0.9585,2466.7,2466.4,4.60442078]
[1751282625801,0.9585,2466.7,2466.5,4.05431278]
[1751282626004,1.45972574,2466.7,2466.4,0.55]
[1751282626295,0.9585,2466.7,2466.4,4.60448604]
[1751282626497,0.9585,2466.7,2466.6,0.55]
[1751282626498,0.7561,2466.7,2466.6,0.55]
[1751282627209,0.7561,2466.7,2466.5,4.60425713]
[1751282627400,0.7561,2466.7,2466.6,4.60416362]
[1751282628209,0.7561,2466.7,2466.6,0.55]
[1751282628409,0.7561,2466.7,2466.6,4.60416362]
[1751282628921,0.7561,2466.7,2466.6,0.55]
[1751282629224,0.7561,2466.7,2466.6,4.60416362]
[1751282629424,0.7561,2466.7,2466.6,0.55]
[1751282629619,0.7561,2466.7,2466.6,4.60416362]
[1751282629930,0.7561,2466.7,2466.6,0.55]
[1751282630281,2.66270772,2466.7,2466.6,0.55]
[1751282631282,2.66270772,2466.7,2466.4,0.2024]
[1751282631600,4.05424624,2466.6,2466.3,0.55]
[1751282631799,4.0544341,2466.5,2465.9,4.05526446]
[1751282631990,1.01326867,2466.4,2466.1,4.60498094]
[1751282632195,1.01326867,2466.4,2466.0,4.25745106]
[1751282632724,0.8059,2466.3,2466.1,0.55]
[1751282633305,4.86061938,2466.3,2466.1,0.55]
[1751282633583,0.8059,2466.3,2466.1,0.55]
[1751282633785,4.86057388,2466.3,2466.1,0.55]
[1751282633997,14.05494026,2466.2,2466.0,0.2024]
[1751282634922,14.05494026,2466.2,2465.9,0.55]
[1751282635131,10.2024,2466.2,2465.9,0.55]
[1751282635685,10.2024,2466.2,2465.9,4.05519905]
[1751282636321,11.60498087,2466.2,2465.9,4.05519905]
[1751282637319,11.60498087,2466.2,2465.8,4.60542944]
[1751282638217,11.60498087,2466.2,2465.8,0.55]
[1751282638423,0.8217,2466.1,2465.8,4.60546818]
[1751282639086,0.8217,2466.1,2465.8,0.55]
[1751282639301,4.05532994,2465.9,2465.6,0.02]
[1751282639501,0.7649,2465.8,2465.6,0.57]
[1751282640429,0.7649,2465.8,2465.6,0.02]
[1751282640617,0.9673,2465.8,2465.6,0.02]
[1751282640817,14.55791544,2465.7,2465.6,0.02]
[1751282641634,10.50227202,2465.7,2465.6,0.02]
[1751282642033,14.55791544,2465.7,2465.6,0.02]
[1751282642422,15.34831544,2465.7,2465.6,0.02]
[1751282644933,11.29267202,2465.7,2465.6,0.02]
[1751282645135,10.7904,2465.7,2465.6,0.02]
[1751282646610,14.84604342,2465.7,2465.6,0.02]
[1751282650455,14.84604342,2465.7,2465.6,0.02]
[1751282652532,14.85604342,2465.7,2465.6,0.02]
[1751282655167,10.8004,2465.7,2465.6,0.02]
[1751282655351,12.30623741,2465.7,2465.6,0.02]
[1751282656353,0.01,2465.7,2465.6,4.62580791]
[1751282656678,0.2124,2465.7,2465.6,4.07580791]
[1751282657024,0.2124,2465.7,2465.6,0.02]
[1751282657025,10.2124,2465.7,2465.6,0.02]
[1751282657224,15.08024342,2465.7,2465.6,0.02]
[1751282660365,24.70762052,2465.7,2465.6,0.02]
[1751282660574,27.58393075,2465.7,2465.6,0.02]
[1751282660873,28.08393075,2465.7,2465.6,0.02]
[1751282661629,35.91393075,2465.7,2465.6,0.02]
[1751282661854,14.05663056,2465.1,2465.0,0.501]
[1751282662061,14.82773056,2465.1,2465.0,0.501]
[1751282662270,17.67889155,2465.1,2465.0,0.501]
[1751282665415,13.62226099,2465.1,2465.0,0.501]
[1751282665576,17.67889155,2465.1,2465.0,0.501]
[1751282665992,13.62226099,2465.1,2465.0,0.501]
[1751282666360,4.86780796,2465.6,2465.0,0.501]
[1751282666585,0.2024,2465.1,2465.0,4.55779513]
[1751282671983,10.0,2465.5,2465.1,4.05653527]
[1751282672182,0.2024,2465.3,2465.1,4.05653527]
[1751282672388,0.2024,2465.3,2465.2,4.056466]
[1751282672788,0.2024,2465.3,2465.1,4.05653965]
[1751282673401,0.2024,2465.3,2465.2,4.056466]
[1751282674788,0.2024,2465.3,2465.1,4.05654702]
[1751282675093,0.2024,2465.3,2465.0,0.501]
[1751282675094,0.7788,2465.2,2465.0,0.501]
[1751282675295,1.09812,2465.1,2465.0,0.501]
[1751282677704,0.7788,2465.2,2465.0,4.55779513]
[1751282677906,0.7704,2465.5,2465.0,0.501]
[1751282678201,4.05663056,2465.1,2465.0,0.501]
[1751282678395,14.05655624,2465.2,2465.0,0.501]
[1751282678987,10.0,2465.2,2465.0,0.501]
[1751282679309,11.40563795,2465.2,2465.0,0.501]
[1751282680005,5.46210611,2465.2,2465.0,0.501]
[1751282680583,1.40563795,2465.2,2465.0,0.501]
[1751282680785,5.46212071,2465.2,2465.0,0.501]
[1751282681215,6.22182071,2465.2,2465.0,0.501]
[1751282681382,2.02781262,2465.1,2465.0,0.501]
[1751282683398,6.08444318,2465.1,2465.0,0.501]
[1751282683913,16.08444318,2465.1,2465.0,0.501]
[1751282684590,16.88564318,2465.1,2465.0,0.501]
[1751282691831,12.82901262,2465.1,2465.0,0.501]
[1751282692316,12.02781262,2465.1,2465.0,0.501]
[1751282693733,10.0,2465.1,2465.0,0.501]
[1751282694346,0.01,2465.6,2465.0,4.55768554]
[1751282694532,10.0,2465.3,2465.0,4.55768554]
[1751282694843,10.0,2465.4,2465.0,4.55768554]
[1751282695139,14.05615752,2465.4,2465.0,4.55768554]
[1751282695840,1.81122251,2465.3,2465.0,4.55768554]
[1751282696038,5.8675555,2465.3,2465.0,0.501]
[1751282696210,4.05633299,2465.3,2465.0,0.501]
[1751282696545,14.05623609,2465.4,2465.0,4.55777198]
[1751282697105,14.05623609,2465.4,2465.0,0.501]
[1751282697939,0.2024,2465.1,2465.0,4.55772882]
[1751282700344,0.2024,2465.1,2465.0,4.55779513]
[1751282705847,14.25903056,2465.1,2465.0,0.501]
[1751282706046,16.76729362,2465.1,2465.0,0.501]
[1751282706265,17.59089362,2465.1,2465.0,0.501]
[1751282707328,23.90832121,2465.1,2465.0,0.501]
[1751282707529,4.05767459,2464.5,2464.1,0.7671]
[1751282707737,0.2024,2464.3,2464.1,0.7671]
[1751282708656,0.2024,2464.3,2464.1,4.82536081]
[1751282709325,0.2024,2464.3,2464.1,0.7671]
[1751282709955,0.2024,2464.1,2463.4,0.8223]
[1751282710173,0.7733,2464.2,2463.4,0.8223]
[1751282710174,0.2024,2463.6,2463.4,0.8223]
[1751282710656,4.26152421,2463.6,2463.2,0.7712]
[1751282710954,0.2024,2463.6,2463.2,4.83090668]
[1751282711857,4.26151898,2463.6,2463.2,4.83090668]
[1751282712059,0.2024,2463.6,2463.2,4.83090668]
[1751282712558,0.2024,2463.6,2463.3,4.05958823]
[1751282712757,0.2024,2463.6,2463.2,0.7712]
[1751282712933,0.7543,2463.8,2463.3,0.55]
[1751282713138,0.2024,2463.6,2463.4,4.05934992]
[1751282713333,0.2024,2463.6,2463.3,4.05950007]
[1751282714060,0.2024,2463.6,2463.4,4.05941709]
[1751282714234,0.2024,2463.6,2463.5,4.05926527]
[1751282714651,0.2024,2463.6,2463.4,4.05934333]
[1751282715253,0.2024,2463.6,2463.5,4.05926527]
[1751282716075,0.2024,2463.6,2463.4,4.05933781]
[1751282716574,0.2024,2463.6,2463.5,4.05926527]
[1751282718676,0.2024,2463.6,2463.4,4.05934194]
[1751282718854,0.2024,2463.6,2463.5,4.05926527]
[1751282720264,0.2024,2463.6,2463.4,4.05934996]
[1751282720443,4.81310831,2463.8,2463.4,4.05934996]
[1751282720775,0.48131083,2463.7,2463.4,4.05934996]
[1751282722473,0.48131083,2463.7,2463.2,4.05968982]
[1751282722474,0.2024,2463.4,2463.2,4.05961702]
[1751282722646,4.54033155,2463.7,2463.2,4.05961702]
[1751282722647,0.2024,2463.3,2463.2,4.05961702]
[1751282724678,0.2024,2463.3,2463.2,4.60961702]
[1751282725280,0.828,2464.0,2463.6,4.05898535]
[1751282725485,0.48863621,2463.9,2463.6,4.05898535]
[1751282725850,0.48863621,2463.9,2463.7,4.0589125]
[1751282726662,0.2024,2463.7,2463.5,4.05920601]
[1751282727052,0.2024,2463.7,2463.6,4.0591005]
[1751282727286,0.2024,2463.7,2463.5,4.05916599]
[1751282728093,0.2024,2463.7,2463.6,4.0591005]
[1751282728387,0.2024,2463.7,2463.4,0.55]
[1751282728578,0.2024,2463.7,2463.6,4.0591005]
[1751282729078,0.2024,2463.7,2463.5,4.05918377]
[1751282729277,0.2024,2463.7,2463.4,4.609329]
[1751282729494,0.2024,2463.7,2463.5,4.0592389]
[1751282730105,0.2024,2463.7,2463.6,4.0591005]
[1751282730292,0.2024,2463.7,2463.5,4.05919295]
[1751282730598,0.2024,2463.7,2463.6,4.0591005]
[1751282732504,0.2024,2463.7,2463.5,4.05917529]
[1751282732915,0.2024,2463.7,2463.6,4.0591005]
[1751282733612,0.2024,2463.7,2463.5,4.05916256]
[1751282734615,0.2024,2463.7,2463.4,4.60933657]
[1751282735418,0.2024,2463.7,2463.5,4.05923445]
[1751282736085,0.2024,2463.7,2463.4,4.60935687]
[1751282736287,1.9374,2463.7,2463.4,4.60935687]
[1751282736585,2.58588153,2463.7,2463.4,4.60935687]
[1751282737506,6.44243572,2463.7,2463.3,4.05947858]
[1751282737821,0.2024,2463.5,2463.3,4.05947858]
[1751282739221,0.2024,2463.5,2463.1,5.39668558]
[1751282739443,0.2024,2463.5,2463.3,0.55]
[1751282740003,0.86689892,2463.5,2463.3,0.55]
[1751282740854,0.86689892,2463.5,2463.3,4.60957997]
[1751282741849,0.66449892,2463.5,2463.2,0.55]
[1751282742150,0.2024,2463.3,2463.2,4.60975966]
[1751282742750,0.2024,2463.3,2463.2,0.55]
[1751282743219,0.2024,2463.3,2463.1,4.84672621]
[1751282743646,0.2024,2463.3,2463.2,4.05975966]
[1751282744948,0.2024,2463.3,2463.2,4.60975966]
[1751282746350,0.2024,2463.3,2463.2,0.55]
[1751282746841,0.2024,2463.3,2463.2,4.60975966]
[1751282747444,0.2024,2463.3,2463.2,0.55]
[1751282747646,0.2024,2463.3,2463.2,4.60975966]
[1751282749652,0.2024,2463.3,2463.2,0.55]
[1751282750727,0.2024,2463.3,2463.2,4.60975966]
[1751282752154,0.2024,2463.3,2463.2,0.55]
[1751282753121,0.2024,2463.3,2463.2,4.60975966]
[1751282754852,0.2024,2463.3,2463.2,0.55]
[1751282756529,0.2024,2463.3,2463.2,4.60975966]
[1751282756938,1.735,2463.7,2463.6,0.55]
[1751282757140,3.05684704,2463.7,2463.6,0.55]
[1751282757516,0.2024,2463.6,2463.5,0.55]
[1751282758020,0.2024,2463.6,2463.0,10.38544287]
[1751282758021,0.9705,2463.6,2462.9,0.8071]
[1751282758220,0.2024,2463.3,2463.2,4.05963907]
[1751282758415,0.2024,2463.3,2463.2,4.60963907]